bitfinex/quotes_SOLUSD_20240902
["timestamp","ask_amount","ask_price","bid_price","bid_amount"]
[1725265854918,39.82105991,130.63,130.56,7.659]
[1725265855223,48.96183034,130.62,130.56,7.659]
[1725265855425,41.30603034,130.62,130.56,7.659]
[1725265856142,39.82105991,130.6,130.53,19.1517]
[1725265856351,39.82105991,130.6,130.51,38.3104]
[1725265856352,41.30603034,130.65,130.59,7.6573]
[1725265856526,41.30603034,130.65,130.51,38.3104]
[1725265856527,39.82105991,130.66,130.61,7.6562]
[1725265857052,39.82105991,130.64,130.59,26.8002]
[1725265857254,39.82105991,130.65,130.62,7.6556]
[1725265857418,39.82105991,130.65,130.59,19.1432]
[1725265857618,39.82105991,130.63,130.59,19.1432]
[1725265858238,41.30603034,130.63,130.59,19.1432]
[1725265858459,39.82105991,130.68,130.63,7.6548]
[1725265858637,39.82105991,130.68,130.64,7.6545]
[1725265858837,39.82105991,130.68,130.65,7.6539]
[1725265859038,39.82105991,130.68,130.67,7.6528]
[1725265859349,41.30603034,130.69,130.67,7.6528]
[1725265859661,41.30603034,130.69,130.62,38.2783]
[1725265859662,39.82105991,130.73,130.69,19.1285]
[1725265859868,39.82105991,130.73,130.71,7.6505]
[1725265860173,41.30603034,130.75,130.73,7.6493]
[1725265860360,61.28895991,130.77,130.75,7.648]
[1725265860559,61.28895991,130.77,130.72,19.1243]
[1725265860560,39.82105991,130.74,130.73,7.6491]
[1725265860869,39.82105991,130.74,130.66,38.2643]
[1725265860870,39.82105991,130.7,130.68,19.1299]
[1725265861236,39.82105991,130.75,130.74,7.6487]
[1725265861440,39.82105991,130.75,130.67,38.2641]
[1725265861441,54.83505991,130.77,130.76,7.6475]
[1725265861668,54.83505991,130.77,130.75,19.1193]
[1725265861965,54.83505991,130.77,130.75,26.7673]
[1725265861966,15.014,130.77,130.75,26.7673]
[1725265862175,41.30603034,130.81,130.8,7.6452]
[1725265862349,46.08605991,130.83,130.81,7.6442]
[1725265862555,38.27748621,130.94,130.77,38.2344]
[1725265862556,39.82105991,130.86,130.77,38.2344]
[1725265862751,39.82105991,130.86,130.84,7.6424]
[1725265862952,39.82105991,130.83,130.81,19.1108]
[1725265863154,39.82105991,130.83,130.81,26.7554]
[1725265864152,39.82105991,130.85,130.81,19.1108]
[1725265864752,39.82105991,130.81,130.78,7.646]
[1725265864952,39.82105991,130.81,130.79,7.6457]
[1725265865153,39.82105991,130.81,130.77,19.117]
[1725265865154,39.82105991,130.83,130.77,19.117]
[1725265865369,39.82105991,130.83,130.8,7.6451]
[1725265865569,39.82105991,130.81,130.8,7.6451]
[1725265865973,39.82105991,130.81,130.78,7.6459]
[1725265866267,39.82105991,130.79,130.77,19.117]
[1725265866454,39.82105991,130.79,130.77,26.7639]
[1725265866657,81.12709025,130.83,130.77,19.117]
[1725265866858,39.82105991,130.81,130.77,19.117]
[1725265867369,81.12709025,130.83,130.8,7.6452]
[1725265868879,39.82105991,130.8,130.77,19.117]
[1725265869087,39.82105991,130.78,130.77,19.117]
[1725265869255,39.82105991,130.76,130.73,19.1222]
[1725265869608,39.82105991,130.78,130.73,19.1222]
[1725265869756,39.82105991,130.8,130.76,19.1181]
[1725265869950,39.82105991,130.8,130.78,7.6463]
[1725265870151,39.82105991,130.8,130.79,7.6458]
[1725265870481,39.82105991,130.8,130.76,19.1181]
[1725265870482,39.82105991,130.8,130.78,7.6464]
[1725265870679,39.82105991,130.82,130.81,7.6446]
[1725265870975,39.82105991,130.82,130.79,19.1143]
[1725265870976,39.82105991,130.8,130.79,19.1143]
[1725265871480,39.82105991,130.77,130.74,7.6486]
[1725265871686,39.82105991,130.74,130.71,19.1251]
[1725265871986,39.82105991,130.74,130.58,5.0]
[1725265871987,39.82105991,130.69,130.65,7.6535]
[1725265872349,20.0,130.75,130.63,19.1367]
[1725265872350,39.82105991,130.66,130.63,19.1367]
[1725265873257,39.82105991,130.66,130.53,41.30603034]
[1725265873465,41.30603034,130.67,130.54,5.0]
[1725265873781,39.82105991,130.64,130.53,41.30603034]
[1725265874664,39.82105991,130.62,130.51,6.2162]
[1725265874975,39.82105991,130.6,130.47,41.30603034]
[1725265875363,84.82105991,130.6,130.47,41.30603034]
[1725265876087,39.82105991,130.66,130.53,41.30603034]
[1725265876382,39.82105991,130.64,130.53,41.30603034]
[1725265876562,39.82105991,130.66,130.53,41.30603034]
[1725265876754,39.82105991,130.64,130.53,41.30603034]
[1725265877592,39.82105991,130.64,130.5,46.30603034]
[1725265877769,39.82105991,130.64,130.51,20.0]
[1725265877956,39.82105991,130.66,130.51,20.0]
[1725265878169,81.12709025,130.7,130.56,41.30603034]
[1725265878486,39.82105991,130.67,130.56,41.30603034]
[1725265878683,39.82105991,130.65,130.53,41.30603034]
[1725265879575,81.12709025,130.67,130.53,41.30603034]
[1725265879901,39.82105991,130.67,130.53,46.30603034]
[1725265880192,41.30603034,130.69,130.55,5.0]
[1725265880193,81.12709025,130.69,130.55,5.0]
[1725265880353,81.12709025,130.69,130.53,46.30603034]
[1725265880556,81.12709025,130.69,130.55,5.0]
[1725265880760,81.12709025,130.69,130.56,41.30603034]
[1725265880988,39.82105991,130.73,130.59,41.56868614]
[1725265881171,16.4112,130.74,130.6,65.0]
[1725265881484,41.30603034,130.76,130.6,65.0]
[1725265881485,39.82105991,130.73,130.6,65.0]
[1725265881660,39.82105991,130.73,130.6,20.0]
[1725265882182,39.82105991,130.73,130.61,45.0]
[1725265882391,39.82105991,130.75,130.62,20.0]
[1725265882882,39.82105991,130.72,130.59,0.2626558]
[1725265883284,39.82105991,130.7,130.59,0.2626558]
[1725265883489,41.30603034,130.73,130.59,0.2626558]
[1725265883663,39.82105991,130.72,130.59,45.2626558]
[1725265883866,39.82105991,130.7,130.6,20.0]
[1725265884087,39.82105991,130.7,130.59,0.2626558]
[1725265884384,39.82105991,130.73,130.61,41.30603034]
[1725265884682,39.82105991,130.77,130.64,41.30603034]
[1725265884883,39.82105991,130.75,130.64,41.30603034]
[1725265885090,39.82105991,130.73,130.61,41.30603034]
[1725265885387,39.82105991,130.75,130.62,20.0]
[1725265885772,39.82105991,130.73,130.62,20.0]
[1725265885977,41.30603034,130.76,130.62,20.0]
[1725265886159,41.30603034,130.76,130.64,41.30603034]
[1725265886356,41.30603034,130.76,130.65,20.0]
[1725265886588,81.12709025,130.79,130.65,20.0]
[1725265886890,81.12709025,130.79,130.67,41.30603034]
[1725265887059,39.82105991,130.79,130.68,20.0]
[1725265888281,41.30603034,130.82,130.68,20.0]
[1725265888282,39.82105991,130.81,130.68,26.5648]
[1725265888661,39.82105991,130.81,130.69,45.0]
[1725265888881,39.82105991,130.81,130.7,20.0]
[1725265889389,41.30603034,130.82,130.77,7.6468]
[1725265889390,39.82105991,130.79,130.77,7.6468]
[1725265889762,39.82105991,130.79,130.76,26.7663]
[1725265890157,39.82105991,130.79,130.76,19.1188]
[1725265890388,39.82105991,130.81,130.79,19.1131]
[1725265890686,39.82105991,130.81,130.8,7.6452]
[1725265890986,41.30603034,130.84,130.8,7.6452]
[1725265890987,81.12709025,130.84,130.8,7.6452]
[1725265891182,39.82105991,130.84,130.72,38.2485]
[1725265891375,41.30603034,130.9,130.83,7.6435]
[1725265891578,39.82105991,130.88,130.85,7.6417]
[1725265891786,15.4848,130.93,130.84,19.1068]
[1725265891787,39.82105991,130.86,130.84,19.1068]
[1725265891993,39.82105991,130.86,130.8,19.1119]
[1725265892193,15.4848,130.93,130.86,19.1041]
[1725265892194,81.12709025,130.91,130.86,19.1041]
[1725265892789,81.12709025,130.91,130.87,7.6407]
[1725265892972,23.1225,130.93,130.86,19.1041]
[1725265892973,55.30585991,130.93,130.86,19.1041]
[1725265893288,39.82105991,130.93,130.9,7.6393]
[1725265893664,39.82105991,130.93,130.91,7.6388]
[1725265893988,39.82105991,130.95,130.92,19.0953]
[1725265894193,0.7092582,130.96,130.95,7.6365]
[1725265895385,7.382414,131.11,130.95,7.6365]
[1725265895386,39.82105991,131.09,130.95,41.30603034]
[1725265895585,40.79297391,131.11,131.09,7.6282]
[1725265895817,40.79297391,131.11,131.06,19.0752]
[1725265896010,0.971914,131.11,131.06,19.0752]
[1725265896188,0.971914,131.11,131.09,26.6977]
[1725265896383,0.971914,131.11,131.09,19.0695]
[1725265896617,0.971914,131.11,131.04,19.0766]
[1725265896794,39.82105991,131.09,131.04,19.0766]
[1725265897007,39.82105991,131.1,131.05,7.6301]
[1725265897298,81.12709025,131.08,131.02,7.6319]
[1725265897482,39.82105991,131.1,131.05,7.6304]
[1725265898125,39.82105991,131.03,130.89,6.5979]
[1725265898282,39.82105991,131.04,130.89,6.5979]
[1725265898483,39.82105991,131.02,130.9,41.30603034]
[1725265898694,39.82105991,131.0,130.89,6.5979]
[1725265898893,45.0,131.01,130.98,7.6345]
[1725265899195,45.0,131.01,130.95,19.0912]
[1725265899498,45.0,131.01,130.95,26.7275]
[1725265899499,39.82105991,131.0,130.95,26.7275]
[1725265900011,39.82105991,131.0,130.85,5.0]
[1725265900012,39.82105991,130.97,130.93,7.6372]
[1725265900309,45.0,131.01,130.9,38.1943]
[1725265900512,39.82105991,131.02,130.97,19.0872]
[1725265900817,39.82105991,131.0,130.97,19.0872]
[1725265900997,39.82105991,130.98,130.93,19.0938]
[1725265901517,81.12709025,130.96,130.9,7.6389]
[1725265901728,47.45845991,130.94,130.88,19.1]
[1725265901928,39.82105991,130.92,130.85,7.6418]
[1725265902213,39.82105991,130.92,130.84,19.1069]
[1725265902214,81.12709025,130.9,130.84,26.7494]
[1725265902391,81.12709025,130.9,130.77,6.2374]
[1725265902392,41.30603034,130.87,130.77,6.2374]
[1725265902590,41.30603034,130.87,130.74,41.30603034]
[1725265902591,45.0,130.89,130.79,38.2279]
[1725265902815,81.12709025,130.9,130.83,19.1078]
[1725265903013,81.12709025,130.93,130.86,19.1031]
[1725265903336,39.82105991,130.92,130.86,19.1031]
[1725265904004,47.45925991,130.92,130.86,26.7444]
[1725265904212,39.82105991,130.9,130.86,26.7444]
[1725265904391,84.82105991,130.91,130.86,26.7444]
[1725265904589,48.94553034,130.9,130.84,7.6427]
[1725265904814,48.94553034,130.9,130.73,5.0]
[1725265904815,7.6418,130.86,130.78,19.1155]
[1725265904995,81.12709025,130.87,130.78,19.1155]
[1725265905309,39.82105991,130.85,130.78,19.1155]
[1725265905599,48.94563034,130.9,130.81,19.1107]
[1725265905806,39.82105991,130.89,130.85,26.7474]
[1725265905995,41.30603034,130.9,130.81,26.7552]
[1725265905996,39.82105991,130.85,130.81,26.7552]
[1725265906321,39.82105991,130.85,130.81,19.1107]
[1725265906614,7.6429,130.84,130.78,7.6462]
[1725265906821,7.6471,130.77,130.66,6.3055]
[1725265907026,88.77409025,130.77,130.71,7.6503]
[1725265907325,41.30603034,130.8,130.75,7.6481]
[1725265907505,6.126,130.86,130.69,38.2574]
[1725265907506,81.12709025,130.84,130.78,7.6464]
[1725265907709,39.82105991,130.8,130.75,19.12]
[1725265907907,39.82105991,130.78,130.73,7.6488]
[1725265908105,81.12709025,130.78,130.73,7.6491]
[1725265908322,41.30603034,130.78,130.74,7.6487]
[1725265908622,45.0,130.77,130.7,26.7769]
[1725265908823,39.82105991,130.76,130.7,19.1264]
[1725265909029,88.77399025,130.78,130.72,7.6497]
[1725265909195,41.30603034,130.78,130.73,19.1228]
[1725265909691,39.82105991,130.8,130.76,7.6474]
[1725265909891,39.82105991,130.8,130.73,19.1228]
[1725265910116,39.82105991,130.8,130.76,7.6475]
[1725265910624,48.94953034,130.83,130.77,7.6469]
[1725265910929,81.12709025,130.86,130.79,19.1138]
[1725265911102,39.82105991,130.84,130.79,26.7592]
[1725265911303,39.82105991,130.82,130.79,19.1138]
[1725265911504,39.82105991,130.82,130.76,7.647]
[1725265911807,48.94953034,130.83,130.75,19.1194]
[1725265911808,81.12709025,130.83,130.75,19.1194]
[1725265912125,39.82105991,130.82,130.75,19.1194]
[1725265912506,41.30603034,130.83,130.73,7.6492]
[1725265912507,88.77279025,130.8,130.73,7.6492]
[1725265912706,88.77279025,130.8,130.71,19.1252]
[1725265912707,81.12709025,130.8,130.75,7.6481]
[1725265912918,39.82105991,130.8,130.76,7.6475]
[1725265913235,39.82105991,130.78,130.74,19.1215]
[1725265913407,41.30603034,130.83,130.74,19.1215]
[1725265913408,81.12709025,130.8,130.74,19.1215]
[1725265913602,39.82105991,130.8,130.77,7.6469]
[1725265913921,39.82105991,130.8,130.75,7.6479]
[1725265914429,39.82105991,130.82,130.76,7.6474]
[1725265914604,39.82105991,130.82,130.74,19.1215]
[1725265914795,39.82105991,130.79,130.74,19.1215]
[1725265914998,39.82105991,130.79,130.74,26.7696]
[1725265915317,39.82105991,130.76,130.74,19.1215]
[1725265915692,48.95243034,130.78,130.7,19.1265]
[1725265915693,81.12709025,130.78,130.7,19.1265]
[1725265915896,81.12709025,130.78,130.72,7.6499]
[1725265916401,81.12709025,130.78,130.73,7.6487]
[1725265917604,39.82105991,130.78,130.75,7.6481]
[1725265917919,39.82105991,130.78,130.73,26.7717]
[1725265918319,41.30603034,130.81,130.74,7.6487]
[1725265918320,39.82105991,130.77,130.74,7.6487]
[1725265918522,39.82105991,130.77,130.73,19.1228]
[1725265918735,7.6479,130.76,130.71,7.6504]
[1725265919021,39.82105991,130.77,130.72,7.6497]
[1725265919723,39.82105991,130.77,130.72,19.1236]
[1725265920024,41.30603034,130.78,130.72,19.1236]
[1725265920228,39.82105991,130.77,130.72,26.7732]
[1725265920522,41.30603034,130.78,130.72,19.1236]
[1725265920719,81.12709025,130.81,130.75,19.1199]
[1725265920907,41.30603034,130.81,130.75,19.1199]
[1725265921109,39.82105991,130.79,130.75,19.1199]
[1725265921331,39.82105991,130.79,130.73,7.6491]
[1725265921332,47.46695991,130.79,130.73,7.6491]
[1725265921626,47.46695991,130.79,130.74,7.6487]
[1725265921627,41.30603034,130.78,130.74,7.6487]
[1725265921825,39.82105991,130.77,130.73,7.6493]
[1725265922046,41.30603034,130.81,130.79,7.6458]
[1725265922199,41.30603034,130.81,130.73,38.2443]
[1725265922402,81.12709025,130.81,130.73,38.2443]
[1725265922722,41.30603034,130.81,130.78,7.6463]
[1725265922926,41.30603034,130.81,130.73,38.2453]
[1725265923125,81.12709025,130.87,130.73,38.2453]
[1725265923321,39.82105991,130.87,130.74,20.0]
[1725265923913,47.46215991,130.87,130.82,19.11]
[1725265924128,39.82105991,130.83,130.8,7.6452]
[1725265924310,39.82105991,130.83,130.78,26.7606]
[1725265925011,41.30603034,130.85,130.81,7.6446]
[1725265925205,39.82105991,130.86,130.83,7.6433]
[1725265925430,48.94673034,130.88,130.77,38.234]
[1725265925431,41.30603034,130.88,130.82,19.1089]
[1725265925823,39.82105991,130.87,130.82,19.1089]
[1725265926018,39.82105991,130.87,130.77,44.8163]
[1725265926019,41.30603034,130.88,130.77,44.8163]
[1725265926213,39.82105991,130.91,130.9,7.6394]
[1725265926214,41.30603034,130.91,130.9,7.6394]
[1725265926411,15.9175,130.96,130.9,19.0985]
[1725265926714,81.12709025,130.97,130.93,19.0937]
[1725265927115,39.82105991,130.96,130.93,19.0937]
[1725265927434,39.82105991,130.94,130.9,7.6388]
[1725265927617,81.12709025,130.94,130.9,7.6388]
[1725265927822,39.82105991,130.92,130.89,19.0989]
[1725265928038,41.30603034,130.97,130.85,19.1047]
[1725265928039,39.82105991,130.89,130.85,19.1047]
[1725265928329,48.94653034,130.88,130.82,7.6435]
[1725265928526,41.30603034,130.88,130.78,20.0]
[1725265928741,39.82105991,130.9,130.78,20.0]
[1725265928916,41.30603034,130.91,130.84,19.1069]
[1725265929113,41.30603034,130.91,130.87,7.6411]
[1725265929422,41.30603034,130.91,130.89,7.6399]
[1725265929625,41.30603034,130.91,130.87,26.7432]
[1725265929842,41.30603034,130.91,130.88,7.6405]
[1725265930332,81.12709025,130.94,130.87,19.1025]
[1725265930530,41.30603034,130.97,130.81,38.2206]
[1725265930531,39.82105991,130.96,130.91,7.6387]
[1725265931037,41.30603034,130.97,130.9,19.0983]
[1725265931412,41.30603034,130.97,130.95,7.6364]
[1725265931608,81.12709025,130.97,130.93,26.7309]
[1725265931936,81.12709025,130.97,130.89,19.0991]
[1725265931937,39.82105991,130.95,130.89,19.0991]
[1725265932155,41.30603034,130.94,130.9,7.6393]
[1725265932440,41.30603034,130.94,130.89,19.0991]
[1725265932441,41.30603034,130.97,130.93,7.6376]
[1725265932916,41.30603034,130.97,130.94,7.6369]
[1725265933253,48.93983034,131.0,130.95,7.6364]
[1725265933477,22.0957,131.02,130.98,7.6344]
[1725265933478,15.9175,131.02,130.98,7.6344]
[1725265933679,81.12709025,131.03,130.98,7.6344]
[1725265933969,39.82105991,131.01,130.97,7.6353]
[1725265934146,41.30603034,131.0,130.96,7.6358]
[1725265934480,41.30603034,131.04,130.95,19.0901]
[1725265934481,47.45345991,131.03,130.95,19.0901]
[1725265934766,47.45345991,131.03,130.88,52.62233034]
[1725265934767,41.30603034,131.04,131.01,7.6327]
[1725265935270,0.8361595,131.06,131.02,7.6323]
[1725265935477,7.6312,131.04,130.97,19.0878]
[1725265935651,48.93723034,131.04,130.99,7.6341]
[1725265935968,39.82105991,130.99,130.93,19.0931]
[1725265936169,39.82105991,130.99,130.88,6.3163]
[1725265936170,41.30603034,130.98,130.88,6.3163]
[1725265936353,41.30603034,130.98,130.94,7.637]
[1725265936548,39.82105991,130.96,130.85,79.51583034]
[1725265936770,39.82105991,130.96,130.9,7.6394]
[1725265936771,41.30603034,130.94,130.9,7.6394]
[1725265937062,81.12709025,130.94,130.88,19.1011]
[1725265937280,81.12709025,130.94,130.9,7.6392]
[1725265937572,39.82105991,130.9,130.84,19.1062]
[1725265937745,45.0,130.95,130.82,7.6435]
[1725265937746,81.12709025,130.88,130.82,7.6435]
[1725265937952,81.12709025,130.88,130.8,19.1119]
[1725265938381,88.76759025,130.88,130.82,7.644]
[1725265938555,39.82105991,130.84,130.8,19.1119]
[1725265938750,39.82105991,130.84,130.76,19.118]
[1725265938993,41.30603034,130.85,130.75,38.2389]
[1725265938994,39.82105991,130.85,130.8,7.6447]
[1725265939276,39.82105991,130.85,130.79,19.1141]
[1725265939277,81.12709025,130.85,130.79,19.1141]
[1725265939976,39.82105991,130.82,130.75,19.1195]
[1725265940470,39.82105991,130.8,130.75,19.1195]
[1725265940853,39.82105991,130.84,130.78,19.1153]
[1725265941051,41.30603034,130.85,130.78,19.1153]
[1725265941245,39.82105991,130.84,130.78,19.1153]
[1725265941747,41.30603034,130.85,130.78,26.7614]
[1725265941748,48.94843034,130.85,130.78,26.7614]
[1725265941947,39.82105991,130.82,130.78,26.7614]
[1725265942148,81.12709025,130.82,130.78,19.1153]
[1725265942349,81.12709025,130.82,130.74,26.7695]
[1725265942350,39.82105991,130.8,130.74,26.7695]
[1725265942579,39.82105991,130.8,130.75,7.648]
[1725265942879,81.12709025,130.82,130.77,19.1168]
[1725265943049,41.30603034,130.85,130.75,38.24]
[1725265943258,41.30603034,130.85,130.82,7.6435]
[1725265943561,41.30603034,130.85,130.75,38.24]
[1725265943757,39.82105991,130.82,130.79,7.6453]
[1725265944069,81.12709025,130.82,130.73,19.1224]
[1725265944279,39.82105991,130.8,130.73,19.1224]
[1725265944446,39.82105991,130.8,130.76,7.6475]
[1725265944764,39.82105991,130.84,130.75,38.2408]
[1725265944963,39.82105991,130.84,130.79,19.114]
[1725265945779,39.82105991,130.84,130.8,7.645]
[1725265945945,41.30603034,130.85,130.75,19.1191]
[1725265945946,39.82105991,130.81,130.75,19.1191]
[1725265946150,39.82105991,130.78,130.7,38.2542]
[1725265946347,39.82105991,130.8,130.75,7.6476]
[1725265946569,39.82105991,130.82,130.78,7.6463]
[1725265946780,39.82105991,130.82,130.79,7.6456]
[1725265946969,39.82105991,130.84,130.71,41.30603034]
[1725265947153,39.82105991,130.82,130.79,19.1131]
[1725265947479,41.30603034,130.83,130.79,19.1131]
[1725265947777,39.82105991,130.84,130.79,19.1131]
[1725265948263,39.82105991,130.84,130.79,26.7585]
[1725265948459,47.46625991,130.81,130.74,7.6482]
[1725265948678,47.46625991,130.81,130.69,38.2561]
[1725265948973,81.12709025,130.83,130.73,38.2445]
[1725265949180,39.82105991,130.81,130.77,26.7634]
[1725265949346,41.30603034,130.83,130.77,26.7634]
[1725265949347,81.12709025,130.83,130.77,19.1168]
[1725265949551,39.82105991,130.83,130.8,19.1127]
[1725265949777,39.82105991,130.83,130.77,7.6464]
[1725265949778,88.77069025,130.83,130.77,7.6464]
[1725265949971,39.82105991,130.8,130.77,7.6464]
[1725265950172,39.82105991,130.8,130.76,19.1178]
[1725265951373,45.0,130.82,130.76,19.1178]
[1725265951374,84.82105991,130.82,130.76,19.1178]
[1725265951553,41.30603034,130.83,130.78,19.1148]
[1725265951749,39.82105991,130.84,130.78,19.1148]
[1725265952064,39.82105991,130.81,130.78,19.1148]
[1725265952570,39.82105991,130.81,130.75,19.1202]
[1725265952882,39.82105991,130.81,130.73,38.2445]
[1725265952883,81.12709025,130.83,130.78,19.1158]
[1725265953058,81.12709025,130.83,130.79,7.6458]
[1725265953258,81.12709025,130.83,130.78,19.1158]
[1725265953259,81.12709025,130.83,130.8,7.645]
[1725265953454,39.82105991,130.86,130.8,19.1117]
[1725265953758,39.82105991,130.84,130.81,7.6442]
[1725265953979,39.82105991,130.86,130.81,7.6442]
[1725265954478,47.46285991,130.86,130.81,7.6442]
[1725265954688,45.0,130.85,130.81,7.6442]
[1725265955188,97.15609025,130.9,130.88,7.6403]
[1725265955481,97.15609025,130.9,130.81,7.6446]
[1725265955482,39.82105991,130.86,130.81,7.6446]
[1725265956263,41.30603034,130.87,130.8,19.112]
[1725265956264,39.82105991,130.84,130.8,19.112]
[1725265956670,81.12709025,130.87,130.8,19.112]
[1725265956982,81.12709025,130.87,130.81,7.6445]
[1725265956983,39.82105991,130.86,130.81,7.6445]
[1725265957184,39.82105991,130.84,130.8,26.7572]
[1725265957486,39.82105991,130.82,130.76,19.1181]
[1725265957666,39.82105991,130.82,130.77,7.6465]
[1725265958375,39.82105991,130.82,130.78,7.646]
[1725265960081,39.82105991,130.82,130.79,7.6458]
[1725265960386,39.82105991,130.8,130.76,19.1181]
[1725265960602,39.82105991,130.8,130.76,26.7651]
[1725265960789,39.82105991,130.8,130.69,38.2561]
[1725265960790,41.30603034,130.78,130.69,38.2561]
[1725265960968,41.30603034,130.78,130.62,6.3064]
[1725265960969,41.30603034,130.71,130.66,7.6528]
[1725265961514,41.30603034,130.71,130.64,19.1355]
[1725265961515,39.82105991,130.7,130.64,19.1355]
[1725265961787,88.77939025,130.68,130.62,7.6552]
[1725265962082,81.12709025,130.68,130.63,7.6551]
[1725265962259,81.12709025,130.68,130.61,0.8583135]
[1725265962260,41.30603034,130.68,130.61,0.8583135]
[1725265962460,41.30603034,130.68,130.63,7.6551]
[1725265962691,41.30603034,130.68,130.63,19.1379]
[1725265962870,41.30603034,130.68,130.64,7.6544]
[1725265963184,39.82105991,130.66,130.63,19.1379]
[1725265963599,45.0,130.67,130.61,0.8583135]
[1725265963600,39.82105991,130.63,130.61,0.8583135]
[1725265963889,86.30603034,130.65,130.48,0.8472365]
[1725265963890,39.82105991,130.61,130.48,0.8472365]
[1725265964076,39.82105991,130.61,130.48,5.8472365]
[1725265964582,41.30603034,130.62,130.48,5.8472365]
[1725265964786,39.82105991,130.63,130.51,6.5238]
[1725265965101,39.82105991,130.63,130.57,26.8051]
[1725265965102,41.30603034,130.62,130.57,26.8051]
[1725265965388,41.30603034,130.62,130.56,7.6592]
[1725265965389,86.30603034,130.62,130.56,7.6592]
[1725265965592,86.30603034,130.62,130.51,38.3087]
[1725265965784,41.30603034,130.62,130.56,19.1477]
[1725265966179,41.30603034,130.62,130.48,5.8472365]
[1725265966180,57.90683034,130.59,130.52,19.1535]
[1725265966379,57.90683034,130.59,130.55,7.6598]
[1725265966581,39.82105991,130.53,130.48,20.0064365]
[1725265966787,41.30603034,130.51,130.48,0.8472365]
[1725265966985,41.30603034,130.51,130.44,19.1654]
[1725265966986,39.82105991,130.49,130.44,19.1654]
[1725265967304,41.30603034,130.46,130.4,19.1708]
[1725265967996,39.82105991,130.45,130.4,26.8394]
[1725265968204,39.82105991,130.41,130.36,19.1771]
[1725265968503,41.30603034,130.43,130.37,7.6703]
[1725265968504,81.12709025,130.43,130.37,7.6703]
[1725265968870,39.82105991,130.45,130.4,7.6684]
[1725265969072,39.82105991,130.45,130.36,19.1771]
[1725265969273,39.82105991,130.45,130.39,7.6691]
[1725265970320,39.82105991,130.45,130.39,19.1723]
[1725265970489,41.30603034,130.46,130.39,19.1723]
[1725265970692,57.56403034,130.48,130.42,19.1679]
[1725265970895,57.56403034,130.48,130.44,7.6661]
[1725265971099,57.56403034,130.48,130.42,19.1679]
[1725265971405,41.30603034,130.51,130.45,19.1634]
[1725265971803,41.30603034,130.54,130.45,19.1634]
[1725265972001,39.82105991,130.53,130.45,19.1634]
[1725265972196,41.30603034,130.54,130.45,19.1634]
[1725265972398,41.30603034,130.54,130.48,19.1592]
[1725265972701,41.30603034,130.54,130.49,7.6629]
[1725265973027,41.30603034,130.54,130.5,7.6626]
[1725265973305,41.30603034,130.54,130.48,19.1592]
[1725265973508,41.30603034,130.57,130.51,19.1549]
[1725265973712,41.30603034,130.57,130.52,7.6612]
[1725265974083,39.82105991,130.56,130.52,7.6612]
[1725265974290,41.30603034,130.57,130.52,7.6612]
[1725265974488,41.30603034,130.57,130.53,7.661]
[1725265975009,41.30603034,130.57,130.54,7.6603]
[1725265975210,81.12709025,130.6,130.51,19.1549]
[1725265975703,39.82105991,130.58,130.54,7.6603]
[1725265975912,39.82105991,130.55,130.47,19.1606]
[1725265976103,81.12709025,130.53,130.47,26.8247]
[1725265976291,81.12709025,130.53,130.47,19.1606]
[1725265976488,41.30603034,130.53,130.47,19.1606]
[1725265976984,41.30603034,130.53,130.48,7.6639]
[1725265977202,39.82105991,130.52,130.45,7.6653]
[1725265977395,39.82105991,130.49,130.43,19.167]
[1725265977593,41.30603034,130.5,130.45,7.6657]
[1725265977895,41.30603034,130.5,130.46,7.6651]
[1725265978210,41.30603034,130.5,130.43,19.167]
[1725265978387,41.30603034,130.5,130.46,7.665]
[1725265978717,41.30603034,130.5,130.47,7.6643]
[1725265978894,30.0,130.52,130.46,19.1623]
[1725265979090,30.0,130.52,130.49,7.663]
[1725265979415,30.0,130.52,130.46,19.1623]
[1725265979790,81.12709025,130.53,130.46,26.8271]
[1725265980009,81.12709025,130.53,130.46,19.1623]
[1725265980200,81.12709025,130.53,130.46,26.827]
[1725265980201,88.78819025,130.53,130.46,26.827]
[1725265980398,41.30603034,130.5,130.46,19.1623]
[1725265980715,41.30603034,130.57,130.46,38.3254]